Cogmind - Beta 13 @@@ ROGUE MODE // 2024.04.02 @ 18:21:41 Player: Ashlemon Result: Destroyed by S-10 Pest with Light Assault Rifle Performance ------------- Evolutions (0) 0 Regions Visited (1) 200 Robots Destroyed (11) 55 Value Destroyed (245) 245 Prototype IDs (0) 0 Alien Tech Used (0) 0 Bonus (0) 0 TOTAL SCORE: 500 Bonus ------- None Cogmind --------- Core Integrity 0/250 Matter 240/300 Energy 100/100 System Corruption 0% Temperature Cool (0) Movement Core (1450) Ox28 Location -10/Materials Parts ------- > --- POWER (1) -------- (None) > --- PROPULSION (2) --- (None) > --- UTILITY (2) ------ Huge Storage Unit Weapon Shielding > --- WEAPON (2) ------- Heavy EM Pulse Gun Heavy EM Pulse Gun > --- INVENTORY (25) --- Large Matter Pod (56) Utility Shielding Utility Shielding Utility Shielding Heavy EM Pulse Gun Heavy EM Pulse Gun Medium Laser Medium Laser Assault Rifle Heavy Assault Rifle Heavy Assault Rifle Shotgun Shotgun Shotgun Shotgun Peak State ------------ > --- POWER ------------ Light Ion Engine > --- PROPULSION ------- Wheel Wheel > --- UTILITY ---------- Huge Storage Unit Seismic Detector > --- WEAPON ----------- Medium Laser Heavy Assault Rifle > --- INVENTORY -------- Aluminum Leg Large Matter Pod Utility Shielding Utility Shielding Utility Shielding Weapon Shielding Heavy EM Pulse Gun Heavy EM Pulse Gun Heavy EM Pulse Gun Heavy EM Pulse Gun Medium Laser Assault Rifle Heavy Assault Rifle Heavy Assault Rifle Heavy Assault Rifle Shotgun Shotgun Shotgun Shotgun [Rating: 11] Favorites ----------- Power Light Ion Engine Engine Light Ion Engine Propulsion Wheel Leg Aluminum Leg Wheel Wheel Utility Huge Storage Unit Device Seismic Detector Storage Huge Storage Unit Protection Weapon Shielding Weapon Heavy Assault Rifle Energy Gun Medium Laser Ballistic Gun Heavy Assault Rifle Build | -11 -10 ------- Run | Yrd Mat Slots Evolved . | . . Power . | . . Propulsion . | . . Utility . | . . Weapon . | . . Parts Attached 23 | 7 16 Power 2 | 1 1 Engine 2 | 1 1 Core . | . . Reactor . | . . Propulsion 6 | 3 3 Treads . | . . Leg 3 | 2 1 Wheel 3 | 1 2 Hover . | . . Flight . | . . Utility 4 | . 4 Device 1 | . 1 Storage 1 | . 1 Processor . | . . Hackware . | . . Protection 2 | . 2 Artifact . | . . Weapon 11 | 3 8 Energy Gun 6 | 2 4 Energy Cannon . | . . Ballistic Gun 5 | 1 4 Ballistic Cannon . | . . Launcher . | . . Special Weapon . | . . Impact Weapon . | . . Slashing Weapon . | . . Piercing Weapon . | . . Special Melee Weapon . | . . Unidentified Prototypes . | . . Parts Lost 8 | . 8 Power 2 | . 2 Propulsion 3 | . 3 Utility 1 | . 1 Weapon 2 | . 2 Highest Loss Streak 4 | . 4 To Critical Strikes . | . . Average Slot Usage (%) 65 | . 65 Engine 8 | . 8 Leg 4 | . 4 Wheel 7 | . 7 Device 3 | . 3 Storage 13 | . 13 Protection 1 | . 1 Energy Gun 9 | . 9 Ballistic Gun 15 | . 15 Naked Turns . | . . Heaviest Build 90 | 7 90 Greatest Support 20 | 10 20 Greatest Overweight (x) 28 | . 28 Average Overweight (x) 5 | . 7 Largest Inventory Capacity 25 | 5 25 Average Capacity 23 | 5 24 Most Carried 19 | 5 19 Average Carried 13 | 2 13 Final Capacity 25 | 5 25 Final Carried 15 | 3 15 Class Distribution -------------------- 100% | Mutant Dominant Class ---------------- Mutant | -10/Materials Resources | -11 -10 ----------- Run | Yrd Mat Matter Collected 545 | 270 275 Remotely . | . . Salvage Created 271 | 37 234 Parts 17 | . 17 Haulers Intercepted . | . . Recyclers Shooed . | . . Parts Field Recycled . | . . Retrieved Matter . | . . Parts Self-Destructed . | . . Prevented . | . . Kills | -11 -10 ------- Run | Yrd Mat Combat Hostiles Destroyed 10 | 1 9 Guns 10 | 1 9 Classes Destroyed 3 | 1 2 Worker 1 | . 1 Swarmer 4 | . 4 Grunt 6 | 1 5 Best Kill Streak 7 | 1 7 Combat Bots Only 3 | 1 3 Max Kills in Single Turn 2 | 1 2 Gunslinging . | . . Exploded . | . . Melee . | . . Uniques/NPCs Destroyed . | . . Combat | -11 -10 -------- Run | Yrd Mat Hostile Shots Fired 138 | 6 132 Missed 34 | 2 32 Damage Taken 950 | 44 906 Core 254 | . 254 Absorbed by Shields . | . . Redirected to Shielding 16 | . 16 Core Remaining (%) 100 | 100 . Volleys Fired 33 | 5 28 Largest 2 | 2 2 Hottest 100 | 100 90 Shots Fired 63 | 10 53 Gun 63 | 10 53 Cannon . | . . Launcher . | . . Special . | . . Kinetic 51 | . 51 Thermal 10 | 10 . Explosive . | . . Electromagnetic 2 | . 2 Robot Hit Streak 10 | 3 10 Robot Miss Streak 4 | 2 4 Penetration Max . | . . Secondary Targets 2 | . 2 Max Gunslinging Chain 1 | . 1 Shots Hit Robots 35 | 5 30 Core Hits 14 | 2 12 Critical Kills . | . . Critical Parts Destroyed . | . . Critical Strikes 2 | 2 . Burn 2 | 2 . Melee Attacks . | . . Impact . | . . Slashing . | . . Piercing . | . . Sneak Attacks . | . . Combat Hostiles . | . . Follow-up Attacks . | . . Damage Inflicted 585 | 63 522 Guns 585 | 63 522 Cannons . | . . Explosions . | . . Melee . | . . Ramming . | . . Kinetic 510 | . 510 Thermal 63 | 63 . Explosive . | . . Electromagnetic 12 | . 12 Impact . | . . Slashing . | . . Piercing . | . . Highest Corruption . | . . Average Corruption . | . . Corruption Purged . | . . Corruption Blocked . | . . Overload Shots . | . . Overflow Damage . | . . Projectiles . | . . Explosions . | . . Melee . | . . Knockbacks . | . . Impact . | . . Kinetic . | . . Secondary . | . . Self-Inflicted Damage . | . . Shots . | . . Rammed . | . . Targets Rammed . | . . Kicked . | . . Crushed . | . . Highest Temperature 156 | 156 15 Average Temperature 54 | 84 3 Received Heat Transfer 258 | 24 234 Siege Activations . | . . Robots Corrupted . | . . Combat Hostiles . | . . Parts Fried . | . . Impact Corruptions . | . . Robots Melted . | . . Combat Hostiles . | . . Parts Melted 3 | 3 . Heat Transferred 333 | 333 . Parts Sabotaged . | . . Parts Stolen . | . . Parts Stripped . | . . Power Chain Reactions . | . . Alert | -11 -10 ------- Run | Yrd Mat Peak Influence 105 | 20 105 Initial 13 | . 13 Average 30 | 1 32 Maximum Alert Level . | . . Low Security (%) 100 | 100 100 Level 1 . | . . Level 2 . | . . Level 3 . | . . Level 4 . | . . Level 5 . | . . High Security . | . . Max Security . | . . Squads Dispatched 3 | . 3 Investigation 1 | . 1 Extermination . | . . Reinforcement 2 | . 2 Assault . | . . Garrison . | . . Intercept . | . . Searches Triggered . | . . Construction Impeded . | . . Haulers Reinforced . | . . Active Scanning Responses . | . . Cargo Convoy Interrupts . | . . Stealth | -11 -10 --------- Run | Yrd Mat Distress Signals . | . . Communications Jammed . | . . Distress Signals . | . . Times Spotted 17 | 1 16 Peak Tracking Total 6 | 1 6 Tactical Retreats . | . . Traps | -11 -10 ------- Run | Yrd Mat Traps Triggered 1 | . 1 Indirectly . | . . Trap Hack Attempts . | . . Triggered . | . . Disarmed . | . . Reprogrammed . | . . Reused . | . . Traps Extracted . | . . Installed . | . . Triggered . | . . Machines | -11 -10 ---------- Run | Yrd Mat Machines Disabled . | . . Max in Single Turn . | . . Machines Repaired . | . . Machines Dismantled . | . . Machines Sabotaged . | . . Overloaded Fab Kills . | . . Hacking | -11 -10 --------- Run | Yrd Mat Machines Accessed 3 | . 3 Terminals 2 | . 2 Fabricators . | . . Repair Stations . | . . Recycling Units 1 | . 1 Scanalyzers . | . . Garrison Access . | . . Total Hacks 8 | . 8 Successful 6 | . 6 Failed 2 | . 2 Catastrophic . | . . Database Lockouts . | . . Manual . | . . Terminals 5 | . 5 Fabricators . | . . Repair Stations . | . . Recycling Units 3 | . 3 Scanalyzers . | . . Garrison Access . | . . Terminal Hacks 3 | . 3 Record 1 | . 1 Alert Level 1 | . 1 Unreport Threat 1 | . 1 Fabricator Hacks . | . . Repair Station Hacks . | . . Recycling Unit Hacks 3 | . 3 Recycle Component 1 | . 1 Process 1 | . 1 Report Inventory 1 | . 1 Scanalyzer . | . . Garrison Access Hacks . | . . Unauthorized Hacks . | . . Terminals . | . . Fabricators . | . . Repair Stations . | . . Recycling Units . | . . Scanalyzers . | . . Garrison Access . | . . Data Cores Recovered . | . . Used . | . . Hacking Detections 2 | . 2 Full Trace Events . | . . Feedback Events . | . . Feedback Blocked . | . . Robot Schematics Acquired . | . . Robots Built . | . . Authchips . | . . Time . | . . Total Robot Build Rating . | . . Part Schematics Acquired . | . . Parts Built . | . . Authchips . | . . Time . | . . Total Part Build Rating . | . . Parts Repaired . | . . Time . | . . Parts Recycled 1 | . 1 Recycled Matter 35 | . 35 Retrieved Matter . | . . Retrieved Components . | . . Parts Scanalyzed . | . . Part Schematics Acquired . | . . Parts Damaged . | . . Bothacking | -11 -10 ------------ Run | Yrd Mat Used RIF Installer . | . . Robots Hacked . | . . Non-combat . | . . Combat . | . . Robot Hacks Applied . | . . Relay Couplers Released . | . . Fabnet Peak Effective % . | . . Robots Rewired . | . . Allies Hacked . | . . Hacks Repelled . | . . Allies | -11 -10 -------- Run | Yrd Mat Total Allies . | . . Largest Group . | . . Highest-Rated Group . | . . Highest-Rated Ally . | . . Total Orders . | . . Ally Attacks . | . . Total Damage . | . . Kills . | . . Allies Corrupted . | . . Allies Melted . | . . Intel | -11 -10 ------- Run | Yrd Mat Robot Analysis Total . | . . Derelict Logs Recovered . | . . Drone Launches . | . . Drone Recoveries . | . . Exploration | -11 -10 ------------- Run | Yrd Mat Turns Passed 1498 | 114 1384 Spaces Moved 430 | 88 342 Core 72 | 30 42 Treads . | . . Legs 120 | 56 64 Wheels 238 | 2 236 Hover . | . . Flight . | . . Fastest Speed 50 | 50 120 Average Speed 313 | 95 369 Slowest Speed 1450 | 120 1450 Overloaded Moves . | . . Propulsion Burnouts . | . . Robots Hopped . | . . Cave-ins Triggered . | . . Exploration Rate (%) 24 | 8 40 Regions Visited 1 Branch Regions . Pre-discovered Areas . | . . Known Exits Taken . | . . Unknown Exits Taken 1 | 1 . Scrap Searched . | . . Spaces Dug . | . . Terrain Destroyed . | . . Melee . | . . Projectile . | . . AOE . | . . Terrain Rammed . | . . Walls Destroyed . | . . Machines Disabled . | . . Actions | -11 -10 --------- Run | Yrd Mat Total 515 | 107 408 Wait . | . . Move 429 | 87 342 Hop . | . . Pick Up 28 | 8 20 Fast Attach . | . . Attach 14 | 5 9 Detach 2 | . 2 Swap 9 | 2 7 Drop . | . . Fire 33 | 5 28 Melee . | . . Ram . | . . Kick . | . . Crush . | . . Escape Stasis . | . . Rewire . | . . Trap . | . . Miscellaneous . | . . Route ------- -11/Scrapyard -10/Materials (discovered 1 exit: [*Min]) History --------- Turn | Location | Event 2 | -11/Scrapyard | Met Revision 17 83 | -11/Scrapyard | Discovered new exit (range 8) 115 | -11/Scrapyard | Entered Materials 301 | -10/Materials | Build established: Mutant 616 | -10/Materials | Lost 4 parts (1p2n1u) 833 | -10/Materials | Core integrity fell below 50% 1050 | -10/Materials | Core integrity fell below 20% 1440 | -10/Materials | Discovered new exit (range 16) 1499 | -10/Materials | Destroyed by S-10 Pest with Light Assault Rifle Last Messages --------------- R-06 Scavenger inserts Heat Sink into recycling unit. R-06 Scavenger inserts Aluminum Leg into recycling unit. ALERT: Hostiles spotted, dispatching reinforcements to Terminal M004. Connecting with Recycling Unit... Acquired 20 matter. To regain energy, simply wait via the mouse wheel, '.', or KP5. Also make sure your per-turn energy generation is a net positive, and consider deactivating power-draining parts if not. EXIT=FOUND S-10 Pest destroyed. K-01 Serf collects debris. R-06 Scavenger collects Lgt. Ion Engine. K-01 Serf collects debris. R-06 Scavenger collects Flight Unit. K-01 Serf collects debris. Map ----- +----------------------------------------------------+ | ?????????????????????????????????????????????????? | | ?????????????????????????????????????????????????? | | ??????????????###?###????????????????????????????? | | ?????????????## #????????????????????????????? | | ?????????????? ????????????????????????????? | | ?????????????? T ?????????????????????????????? | | ??????????????? ?????????????????????????????? | | ??????????????? ?????????????????????????????? | | ???????????????# #?????????????????????????????? | | ???????????????# #?????????????????????????????? | | ???????????????# #?????????????????????????????? | | ???????????????# #????????????+###?????????????? | | ???????????????# #??????????? ???#??????????? | | ???????????????# #???#######? ? #??????????? | | ???????????????# ##### #! #??????????? | | #######????????# # #??????????? | | # #????????# T + +??????????? | | #????????# # #??????????? | | #????????# ##### #???????????????????? | | ########## ###### ##???????????????????? | | / #u #????????????????????? | | ## ########### # + k#????????????????????? | | ## #?????????# # # #????????????????????? | | ## #?????????# # # #????????????????????? | | ?# #?????????# # # #????????????????????? | | ?# #?????????# # ""#@ #????????????????????? | | ?# #?????????# # Y"# #????????????????????? | | ?# ########??# # ""# #????????????????????? | | ?# #??# # # #????????????????????? | | ?# #??# ###### #????????????????????? | | ?# #??# #????# #????????????????????? | | ?## ##### #??# #????# k/????????????????????? | | ###+##### #??# #????# #????????????????????? | | # #??# #????# #????????????????????? | | """ """ # #??# #????? ????????????????????? | | """ """ # #??# #????? ????????????????????? | | """ """ + #??###+#????? s ????????????????????? | | # #????? #?????s< #???????????????????? | | "Y" # +????? #?????kr #???????????????????? | | """ # #????? #????? #???????????????????? | | # #????? #????? ?????????????????????? | | ######### #????? #?????????????????????????????? | | ?# #????? ??????????????????????????????? | | ?# #?????#??????????????????????????????? | | ?# #????????????????????????????????????? | | ## ########????????????????????????????????????? | | # #???????????????????????????????????????????? | | # #???????????????????????????????????????????? | | # #???????????????????????????????????????????? | | # #???????????????????????????????????????????? | +----------------------------------------------------+ Best States ------------- Heat Dissipation 25 Energy Generation 10 Energy Capacity 125 Matter Stores 300 Matter Capacity 300 Sight Range 16 Terrain Scan Density 10 Weapon Shielding 33 Evasion (%) 55 Item Schematics ----------------- None Robot Schematics ------------------ None Fabricated ------------ Nothing Alien Tech Used ----------------- None Achievements -------------- Crack Shot Everything Is Under Control Challenges ------------ None Game ------ Seed ChainScrapInterrupter Manual? 0 Play Time 00:15:49 Cumulative 0.8 hours Start 2024.04.02 @ 18:07:50 End 2024.04.02 @ 18:21:41 Sessions 1 Manual Loads 0 Difficulty Rogue Special Mode None Game No. 2 Rogue 2 Adventurer 0 Explorer 0 Win Type - Total 0 Types 0/0/0/0/0/0/0/0/0 Lore% 0 Gallery% 2 Achievement% 2 Wizard Run 0 Options --------- Layout 1 ASCII 0 Keyboard 0 Movement Arrows Keybinds 0 Fullscreen 1 Font 24/Smallcaps Map View 50x35 Zoom Use 0% Tactical HUD 0 Map Filters NONE Filters NONE Steam 1 RUN: 928c615d-20f9-4b3f-bec3-3fad8ad40984